fUST/lending_fUST_20260107
["ID","MTS","AMOUNT","RATE_DAILY","PERIOD"]
[400613670,1767743737454,-527.57117572,9.744e-05,2]
[400613671,1767743743023,-200.15990436,9.744e-05,2]
[400613672,1767743744838,-263.17107362,9.744e-05,2]
[400613673,1767743746340,-250.4574325,9.744e-05,2]
[400613674,1767743748445,-251.19992171,9.744e-05,2]
[400613675,1767743750441,-190.33105522,9.744e-05,2]
[400613676,1767743752489,-259.34177295,9.744e-05,2]
[400613677,1767743755642,-489.98140847,9.744e-05,2]
[400613678,1767743758617,-259.34177295,9.647e-05,2]
[400613679,1767743758643,-9.75496245,9.744e-05,2]
[400613680,1767743760127,-180.32183878,9.744e-05,2]
[400613681,1767743762367,-231.00256001,9.744e-05,2]
[400613682,1767743764429,-165.4879153,9.744e-05,2]
[400613683,1767743766533,-447.64708326,9.744e-05,2]
[400613684,1767743770393,-302.97291674,9.744e-05,2]
[400613685,1767743774179,-263.38808618,9.744e-05,2]
[400613686,1767743776344,-205.10608061,9.744e-05,2]
[400613687,1767743783100,-302.67,9.647e-05,2]
[400613688,1767743784579,-330.24005058,9.647e-05,2]
[400613689,1767743787875,-470.8586176,9.647e-05,2]
[400613690,1767743857454,-205.14083363,9.551e-05,2]
[400613691,1767743860791,-272.08605631,9.551e-05,2]
[400613692,1767743862860,-208.23196804,9.551e-05,2]
[400613693,1767743864872,-184.56677848,9.551e-05,2]
[400613694,1767743867451,-656.19612601,9.551e-05,2]
[400613695,1767743873635,-384.87576917,9.551e-05,2]
[400613696,1767743876886,-185.97107347,9.551e-05,2]
[400613697,1767743879756,-190.24748996,9.551e-05,2]
[400613698,1767743883637,-300.0,9.551e-05,2]
[400613699,1767743885742,-167.12803546,9.551e-05,2]
[400613700,1767743889448,-466.71196454,9.551e-05,2]
[400613701,1767743893704,-152.11,9.551e-05,2]
[400613702,1767743908645,-1626.73390493,9.551e-05,2]
[400613703,1767743911532,165.85,7.652e-05,2]
[400613704,1767743912054,248.77,8e-05,2]
[400613705,1767743912375,331.7,8.348e-05,2]
[400613706,1767743912828,414.62,8.695e-05,2]
[400613707,1767743913733,497.55,9.043e-05,2]
[400613708,1767743914194,580.47,9.391e-05,2]
[400613709,1767743921330,1602.71529346,9.551e-05,2]
[400613710,1767743967370,2875.25100059,9.551e-05,2]
[400613711,1767743984218,29.61589609,9.551e-05,2]
[400613712,1767743984245,3590.92065694,9.551e-05,2]
[400613713,1767743989934,163.87,7.064e-05,2]
[400613714,1767743990353,245.8,7.385e-05,2]
[400613715,1767743990779,327.73,7.706e-05,2]
[400613716,1767743991205,409.67,8.027e-05,2]
[400613717,1767743991652,491.6,8.348e-05,2]
[400613718,1767743992085,573.53,8.669e-05,2]
[400613719,1767743992496,655.47,8.99e-05,2]
[400613720,1767743992886,737.4,9.311e-05,2]
[400613721,1767744068878,180.25,8.766e-05,2]
[400613722,1767744069322,216.3,9.117e-05,2]
[400613723,1767744069745,252.35,9.467e-05,2]
[400613726,1767744142492,166.75,8.269e-05,2]
[400613727,1767744142907,194.54,8.587e-05,2]
[400613729,1767744143342,222.33,8.905e-05,2]
[400613730,1767744143796,250.13,9.223e-05,2]
[400613731,1767744144243,277.92,9.541e-05,2]
[400613735,1767744227292,-555.0,9.632e-05,2]
[400613765,1767744615950,172.11,9.217e-05,2]
[400613766,1767744616398,200.79,9.572e-05,2]
[400613767,1767744616827,229.48,9.926e-05,2]
[400613768,1767744617265,258.16,0.00010281,2]
[400613799,1767744632118,-286.85,0.00010635,2]
[400613801,1767744632127,-5000.0,0.00011938,2]
[400613803,1767744632136,-639.1697691,0.00012059,2]
[400613804,1767744632146,-590.0,0.00012059,2]
[400613806,1767744632155,-151.0,0.000121,2]
[400613808,1767744632164,-151.0,0.000122,2]
[400613810,1767744632173,-151.0,0.000123,2]
[400613811,1767744632182,-151.0,0.000124,2]
[400613813,1767744632192,-151.0,0.000125,2]
[400613816,1767744632201,-151.0,0.000125,2]
[400613819,1767744632211,-151.0,0.000126,2]
[400613821,1767744632220,-151.0,0.000127,2]
[400613824,1767744632229,-151.0,0.000128,2]
[400613826,1767744632237,-78728.4085643,0.00012862,2]
[400613827,1767744632249,-294.49516258,0.00012862,2]
[400613842,1767744638432,-852.7144162,0.00011962,2]
[400613843,1767744638442,-920977.09627312,0.00012862,2]
[400613844,1767744638452,-7142.75350322,0.000129,2]
[400613846,1767744638462,-956.78664364,0.00012956,2]
[400613847,1767744638473,-300.0,0.00012961,2]
[400613849,1767744638494,-300.0,0.00012961,2]
[400613851,1767744638504,-300.0,0.00012961,2]
[400613853,1767744638514,-300.0,0.00012961,2]
[400613854,1767744638524,-407.83212421,0.00012961,2]
[400613856,1767744638534,-500.0,0.00012961,2]
[400613858,1767744638544,-233.0944744,0.00012961,2]
[400613860,1767744638554,-500.0,0.00012961,2]
[400613862,1767744638565,-500.0,0.00012961,2]
[400613864,1767744638574,-500.0,0.00012961,2]
[400613866,1767744638584,-500.0,0.00012961,2]
[400613867,1767744638593,-500.0,0.00012961,2]
[400613868,1767744638602,-500.0,0.00012961,2]
[400613869,1767744638612,-500.0,0.00012961,2]
[400613870,1767744638621,-500.0,0.00012961,2]
[400613871,1767744638631,-500.0,0.00012961,2]
[400613872,1767744638640,-500.0,0.00012961,2]
[400613873,1767744638650,-225.0,0.00012961,2]
[400613874,1767744638659,-500.0,0.00012961,2]
[400613875,1767744638668,-250.0,0.00012961,2]
[400613876,1767744638679,-50000.0,0.00012962,2]
[400613877,1767744638688,-379.52207798,0.00012962,2]
[400613878,1767744638698,-500.0,0.00012962,2]
[400613879,1767744638707,-500.0,0.00012962,2]
[400613880,1767744638717,-500.0,0.00012962,2]
[400613881,1767744638729,-258.18185864,0.00012962,2]
[400613882,1767744638739,-210.01189824,0.00012962,2]
[400613883,1767744638749,-500.0,0.00012962,2]
[400613884,1767744638758,-500.0,0.00012962,2]
[400613885,1767744638768,-500.0,0.00012962,2]
[400613886,1767744638777,-500.0,0.00012962,2]
[400613887,1767744638788,-500.0,0.00012962,2]
[400613888,1767744638798,-500.0,0.00012962,2]
[400613889,1767744638808,-500.0,0.00012962,2]
[400613890,1767744638818,-500.0,0.00012962,2]
[400613892,1767744638828,-500.0,0.00012962,2]
[400613894,1767744638838,-500.0,0.00012962,2]
[400613896,1767744638848,-500.0,0.00012962,2]
[400613897,1767744638858,-500.0,0.00012962,2]
[400613899,1767744638868,-500.0,0.00012962,2]
[400613901,1767744638878,-500.0,0.00012962,2]
[400613904,1767744638888,-500.0,0.00012962,2]
[400613906,1767744638898,-500.0,0.00012962,2]
[400613908,1767744638908,-500.0,0.00012962,2]
[400613910,1767744638918,-568.3496974,0.00012962,2]
[400613912,1767744638927,-500.0,0.00012962,2]
[400613914,1767744638937,-500.0,0.00012962,2]
[400613916,1767744638947,-500.0,0.00012962,2]
[400613918,1767744638957,-500.0,0.00012962,2]
[400613920,1767744638966,-500.0,0.00012962,2]
[400613922,1767744638976,-500.0,0.00012962,2]
[400613924,1767744638986,-500.0,0.00012962,2]
[400613926,1767744638995,-500.0,0.00012962,2]
[400613928,1767744639005,-500.0,0.00012962,2]
[400613930,1767744639023,-500.0,0.00012962,2]
[400613933,1767744639037,-465.88873101,0.00012962,2]
[400613935,1767744639047,-500.0,0.00012962,2]
[400613937,1767744639057,-500.0,0.00012962,2]
[400613939,1767744639067,-500.0,0.00012962,2]
[400613941,1767744639077,-500.0,0.00012962,2]
[400613943,1767744639086,-500.0,0.00012962,2]
[400613945,1767744639099,-500.0,0.00012962,2]
[400613947,1767744639109,-500.0,0.00012962,2]
[400613949,1767744639120,-500.0,0.00012962,2]
[400613951,1767744639130,-500.0,0.00012962,2]
[400613953,1767744639140,-500.0,0.00012962,2]
[400613955,1767744639151,-500.0,0.00012962,2]
[400613957,1767744639161,-500.0,0.00012962,2]
[400613959,1767744639172,-500.0,0.00012962,2]
[400613961,1767744639183,-646.5888731,0.00012962,2]
[400613963,1767744639193,-500.0,0.00012962,2]
[400613965,1767744639203,-500.0,0.00012962,2]
[400613967,1767744639214,-500.0,0.00012962,2]
[400613968,1767744639225,-500.0,0.00012962,2]
[400613969,1767744639235,-500.0,0.00012962,2]
[400613970,1767744639245,-500.0,0.00012962,2]
[400613971,1767744639255,-500.0,0.00012962,2]
[400613972,1767744639265,-500.0,0.00012962,2]
[400613973,1767744639275,-500.0,0.00012962,2]
[400613974,1767744639285,-500.0,0.00012962,2]
[400613975,1767744639295,-500.0,0.00012962,2]
[400613976,1767744639305,-500.0,0.00012962,2]
[400613977,1767744639315,-500.0,0.00012962,2]
[400613978,1767744639325,-500.0,0.00012962,2]
[400613979,1767744639335,-500.0,0.00012962,2]
[400613980,1767744639347,-320.0,0.00012962,2]
[400613981,1767744639358,-500.0,0.00012962,2]
[400613982,1767744639368,-500.0,0.00012962,2]
[400613983,1767744639379,-322.28561142,0.00012963,2]
[400613984,1767744639394,-500.0,0.00012963,2]
[400613985,1767744639405,-500.0,0.00012963,2]
[400613986,1767744639416,-500.0,0.00012963,2]
[400613987,1767744639426,-500.0,0.00012963,2]
[400613988,1767744639438,-500.0,0.00012963,2]
[400613989,1767744639449,-500.0,0.00012963,2]
[400613990,1767744639462,-500.0,0.00012963,2]
[400613991,1767744639473,-500.0,0.00012963,2]
[400613992,1767744639484,-500.0,0.00012963,2]
[400613993,1767744639668,-500.0,0.00012963,2]
[400613994,1767744639680,-500.0,0.00012963,2]
[400613995,1767744639691,-500.0,0.00012963,2]
[400613996,1767744639701,-500.0,0.00012963,2]
[400613997,1767744639711,-500.0,0.00012963,2]
[400613998,1767744639720,-500.0,0.00012963,2]
[400613999,1767744639729,-500.0,0.00012963,2]
[400614000,1767744639739,-500.0,0.00012963,2]
[400614001,1767744639749,-500.0,0.00012963,2]
[400614002,1767744639759,-500.0,0.00012963,2]
[400614003,1767744639768,-500.0,0.00012963,2]
[400614004,1767744639778,-500.0,0.00012963,2]
[400614005,1767744639788,-500.0,0.00012963,2]
[400614006,1767744639797,-500.0,0.00012963,2]
[400614007,1767744639807,-500.0,0.00012963,2]
[400614008,1767744639817,-439.08989803,0.00012963,2]
[400614009,1767744639827,-217.494,0.00012965,2]
[400614010,1767744639837,-184.7045463,0.00012965,2]
[400614011,1767744639847,-4667.85314935,0.00013,2]
[400614012,1767744639857,-151.0,0.000131,2]
[400614013,1767744639866,-151.0,0.000131,2]
[400614014,1767744639876,-151.0,0.000131,2]
[400614015,1767744639885,-151.0,0.000131,2]
[400614016,1767744639895,-151.0,0.000131,2]
[400614017,1767744639904,-151.0,0.000131,2]
[400614018,1767744639914,-151.0,0.000131,2]
[400614019,1767744639924,-151.0,0.000131,2]
[400614020,1767744639933,-151.0,0.000131,2]
[400614021,1767744639943,-151.0,0.000131,2]
[400614022,1767744639953,-300.0,0.00013224,2]
[400614023,1767744639962,-300.0,0.00013224,2]
[400614024,1767744639972,-300.0,0.00013224,2]
[400614025,1767744639982,-300.0,0.00013224,2]
[400614026,1767744639991,-300.0,0.00013224,2]
[400614027,1767744640001,-300.0,0.00013224,2]
[400614028,1767744640010,-300.0,0.00013224,2]
[400614029,1767744640020,-300.0,0.00013224,2]
[400614030,1767744640029,-300.0,0.00013224,2]
[400614031,1767744640039,-300.0,0.00013224,2]
[400614032,1767744640048,-300.0,0.00013224,2]
[400614033,1767744640057,-300.0,0.00013224,2]
[400614034,1767744640066,-300.0,0.00013224,2]
[400614035,1767744640076,-300.0,0.00013224,2]
[400614037,1767744640085,-300.0,0.00013224,2]
[400614038,1767744640095,-600.0,0.00013224,2]
[400614039,1767744640104,-500.0,0.00013273,2]
[400614040,1767744640113,-500.0,0.00013273,2]
[400614041,1767744640123,-500.0,0.00013273,2]
[400614042,1767744640132,-500.0,0.00013273,2]
[400614043,1767744640142,-500.0,0.00013273,2]
[400614044,1767744640151,-161.85370912,0.00013273,2]
[400614045,1767744640160,-500.0,0.00013273,2]
[400614046,1767744640169,-502.95005986,0.00013273,2]
[400614047,1767744640179,-500.0,0.00013273,2]
[400614048,1767744640188,-500.0,0.00013273,2]
[400614049,1767744640198,-165.53460267,0.00013273,2]
[400614050,1767744640207,-500.0,0.00013273,2]
[400614051,1767744640216,-500.0,0.00013273,2]
[400614052,1767744640225,-500.0,0.00013273,2]
[400614053,1767744640235,-500.0,0.00013273,2]
[400614054,1767744640244,-500.0,0.00013273,2]
[400614055,1767744640254,-500.0,0.00013273,2]
[400614057,1767744640263,-283.37004819,0.00013273,2]
[400614059,1767744640272,-500.0,0.00013273,2]
[400614061,1767744640282,-500.0,0.00013273,2]
[400614063,1767744640291,-500.0,0.00013273,2]
[400614065,1767744640300,-500.0,0.00013273,2]
[400614068,1767744640310,-500.75815525,0.00013273,2]
[400614069,1767744640320,-500.0,0.00013273,2]
[400614071,1767744640329,-500.0,0.00013273,2]
[400614073,1767744640338,-500.0,0.00013273,2]
[400614075,1767744640348,-500.0,0.00013273,2]
[400614078,1767744640358,-500.0,0.00013273,2]
[400614080,1767744640367,-500.0,0.00013273,2]
[400614081,1767744640376,-500.0,0.00013273,2]
[400614084,1767744640388,-232.41734948,0.00013273,2]
[400614086,1767744640398,-500.0,0.00013273,2]
[400614087,1767744640408,-500.0,0.00013273,2]
[400614090,1767744640417,-500.0,0.00013273,2]
[400614091,1767744640428,-268.70604187,0.00013273,2]
[400614093,1767744640437,-500.0,0.00013273,2]
[400614095,1767744640447,-210.68917911,0.00013273,2]
[400614098,1767744640456,-159.32617446,0.00013273,2]
[400614100,1767744640466,-500.0,0.00013273,2]
[400614102,1767744640475,-185.45250914,0.00013273,2]
[400614104,1767744640487,-500.89572759,0.00013273,2]
[400614106,1767744640498,-500.0,0.00013273,2]
[400614108,1767744640507,-500.0,0.00013273,2]
[400614110,1767744640516,-500.0,0.00013273,2]
[400614112,1767744640525,-171.59960392,0.00013273,2]
[400614114,1767744640535,-500.0,0.00013273,2]
[400614116,1767744640544,-500.0,0.00013273,2]
[400614118,1767744640556,-500.49523279,0.00013273,2]
[400614120,1767744640565,-500.0,0.00013273,2]
[400614122,1767744640574,-500.0,0.00013273,2]
[400614124,1767744640584,-500.0,0.00013273,2]
[400614126,1767744640595,-500.0,0.00013273,2]
[400614128,1767744640604,-500.0,0.00013273,2]
[400614130,1767744640614,-500.0,0.00013273,2]
[400614132,1767744640624,-500.0,0.00013273,2]
[400614134,1767744640633,-500.0,0.00013273,2]
[400614136,1767744640643,-300.0,0.00013673,2]
[400614138,1767744640652,-500.0,0.00013698,2]
[400614140,1767744640662,-500.0,0.00013698,2]
[400614142,1767744640672,-500.0,0.00013698,2]
[400614144,1767744640681,-500.0,0.00013698,2]
[400614146,1767744640690,-500.0,0.00013698,2]
[400614148,1767744640700,-500.0,0.00013698,2]
[400614150,1767744640710,-3510.39,0.00013698,2]
[400614152,1767744640720,-3510.39,0.00013698,2]
[400614154,1767744640729,-3510.39,0.00013698,2]
[400614156,1767744640739,-3510.39,0.00013698,2]
[400614158,1767744640750,-3510.39,0.00013698,2]
[400614160,1767744640761,-3510.39,0.00013698,2]
[400614162,1767744640771,-3510.39,0.00013698,2]
[400614164,1767744640781,-3510.39,0.00013698,2]
[400614166,1767744640791,-3510.39,0.00013698,2]
[400614168,1767744640800,-3510.39,0.00013698,2]
[400614170,1767744640811,-3510.39,0.00013698,2]
[400614172,1767744640820,-3510.39,0.00013698,2]
[400614174,1767744640830,-3510.39,0.00013698,2]
[400614176,1767744640839,-3510.39,0.00013698,2]
[400614178,1767744640848,-3510.39,0.00013698,2]
[400614180,1767744640858,-3510.39,0.00013698,2]
[400614182,1767744640867,-3510.39,0.00013698,2]
[400614184,1767744640876,-3510.39,0.00013698,2]
[400614186,1767744640885,-3510.39,0.00013698,2]
[400614188,1767744640895,-3510.39,0.00013698,2]
[400614190,1767744640904,-3510.39,0.00013698,2]
[400614192,1767744640913,-3510.39,0.00013698,2]
[400614193,1767744640922,-3510.39,0.00013698,2]
[400614195,1767744640931,-3510.46251885,0.00013698,2]
[400614197,1767744640941,-500.0,0.00013698,2]
[400614199,1767744640950,-466.89772029,0.00013698,2]
[400614200,1767744640960,-135714.8113562,0.00013699,2]
[400614202,1767744640969,-500.0,0.00013699,2]
[400614204,1767744640979,-500.0,0.00013699,2]
[400614205,1767744640988,-500.0,0.00013699,2]
[400614206,1767744640998,-500.71714379,0.00013699,2]
[400614207,1767744641007,-500.0,0.00013699,2]
[400614208,1767744641016,-500.0,0.00013699,2]
[400614209,1767744641026,-500.0,0.00013699,2]
[400614210,1767744641036,-500.0,0.00013699,2]
[400614211,1767744641045,-500.0,0.00013699,2]
[400614212,1767744641055,-500.0,0.00013699,2]
[400614213,1767744641065,-500.0,0.00013699,2]
[400614214,1767744641074,-500.0,0.00013699,2]
[400614215,1767744641083,-500.0,0.00013699,2]
[400614216,1767744641092,-500.0,0.00013699,2]
[400614217,1767744641102,-500.0,0.00013699,2]
[400614218,1767744641111,-500.7233053,0.00013699,2]
[400614219,1767744641122,-500.0,0.00013699,2]
[400614220,1767744641133,-500.0,0.00013699,2]
[400614221,1767744641142,-634.09365022,0.00013699,2]
[400614222,1767744641154,-500.0,0.00013699,2]
[400614223,1767744641163,-500.0,0.00013699,2]
[400614224,1767744641173,-254.27500282,0.00013699,2]
[400614225,1767744641183,-500.0,0.00013699,2]
[400614226,1767744641192,-500.0,0.00013699,2]
[400614227,1767744641201,-500.0,0.00013699,2]
[400614228,1767744641211,-500.0,0.00013699,2]
[400614229,1767744641221,-500.0,0.00013699,2]
[400614230,1767744641230,-500.0,0.00013699,2]
[400614231,1767744641241,-500.0,0.00013699,2]
[400614232,1767744641250,-500.0,0.00013699,2]
[400614233,1767744641259,-500.0,0.00013699,2]
[400614234,1767744641270,-500.0,0.00013699,2]
[400614235,1767744641279,-500.74532212,0.00013699,2]
[400614236,1767744641288,-526.06901587,0.00013699,2]
[400614237,1767744641298,-500.17698717,0.00013699,2]
[400614238,1767744641308,-500.0,0.00013699,2]
[400614239,1767744641317,-500.2666594,0.00013699,2]
[400614240,1767744641327,-500.93963039,0.00013699,2]
[400614241,1767744641338,-351.22077635,0.00013699,2]
[400614242,1767744641347,-1000.0,0.00013821,2]
[400614243,1767744641357,-1000.0,0.00013821,2]
[400614244,1767744641366,-603.20077108,0.00013821,2]
[400614245,1767744641376,-500.0,0.00013821,2]
[400614246,1767744641385,-1002.25371869,0.00013821,2]
[400614247,1767744641398,-1000.0,0.00013821,2]
[400614248,1767744641408,-1000.0,0.00013821,2]
[400614249,1767744641417,-1000.0,0.00013821,2]
[400614250,1767744641426,-1000.0,0.00013821,2]
[400614251,1767744641436,-1000.0,0.00013821,2]
[400614252,1767744641445,-1000.0,0.00013821,2]
[400614253,1767744641454,-325.41046697,0.00013821,2]
[400614254,1767744641464,-1000.0,0.00013821,2]
[400614255,1767744641473,-361.95620737,0.00013821,2]
[400614256,1767744641482,-275.69590667,0.00013821,2]
[400614257,1767744641492,-15000.0,0.0001386,2]
[400614258,1767744641501,-163.60914411,0.00013973,2]
[400614259,1767744641510,-300.0,0.00014215,2]
[400614260,1767744641519,-420.0,0.00014215,2]
[400614261,1767744641527,-600.0,0.00014221,2]
[400614262,1767744641536,-1000.0,0.00014247,2]
[400614263,1767744641545,-504.33287174,0.00014247,2]
[400614264,1767744641554,-500.0,0.00014247,2]
[400614265,1767744641563,-520.45931442,0.00014247,2]
[400614266,1767744641572,-500.0,0.00014247,2]
[400614267,1767744641580,-1000.0,0.00014247,2]
[400614268,1767744641589,-500.0,0.00014247,2]
[400614269,1767744641597,-500.61401424,0.00014247,2]
[400614270,1767744641606,-1000.0,0.00014247,2]
[400614271,1767744641616,-501.17135178,0.00014247,2]
[400614272,1767744641625,-1000.0,0.00014247,2]
[400614273,1767744641634,-500.0,0.00014247,2]
[400614274,1767744641643,-500.84667986,0.00014247,2]
[400614275,1767744641652,-500.84600982,0.00014247,2]
[400614276,1767744641661,-500.0,0.00014247,2]
[400614277,1767744641670,-580.83767681,0.00014247,2]
[400614278,1767744641680,-1000.0,0.00014247,2]
[400614279,1767744641689,-500.76143899,0.00014247,2]
[400614280,1767744641699,-177.0,0.00014313,2]
[400614281,1767744641708,-1500.0,0.00014368,2]
[400614282,1767744641727,-1041.38457236,0.00014368,2]
[400614283,1767744641736,-1000.0,0.00014368,2]
[400614284,1767744641745,-1098.44792801,0.00014368,2]
[400614285,1767744641755,-1500.0,0.00014368,2]
[400614286,1767744641765,-500.0,0.00014368,2]
[400614287,1767744641773,-1500.0,0.00014368,2]
[400614288,1767744641783,-698.64498703,0.00014368,2]
[400614289,1767744641791,-1000.0,0.00014368,2]
[400614290,1767744641800,-551.34210942,0.00014391,2]
[400614291,1767744641810,-720.0,0.00014547,2]
[400614292,1767744641819,-727.40712175,0.00014768,2]
[400614293,1767744641829,-1500.0,0.00014795,2]
[400614294,1767744641838,-533.7772006,0.00014795,2]
[400614295,1767744641848,-1500.0,0.00014795,2]
[400614296,1767744641857,-1500.0,0.00014795,2]
[400614297,1767744641866,-100000.0,0.00014882,2]
[400614298,1767744641879,-187.56182921,0.00014916,2]
[400614299,1767744641887,-2000.0,0.00014916,2]
[400614300,1767744641897,-1000.0,0.00015,2]
[400614301,1767744641906,-2000.0,0.00015342,2]
[400614302,1767744641916,-2000.0,0.00015342,2]
[400614303,1767744641925,-2000.0,0.00015342,2]
[400614304,1767744641934,-2500.0,0.00015464,2]
[400614305,1767744641943,-587.0,0.00015589,2]
[400614306,1767744641953,-807.40239987,0.00015822,4]
[400614307,1767744641962,-2500.0,0.0001589,2]
[400614308,1767744641971,-2500.0,0.0001589,2]
[400614309,1767744641980,-2500.0,0.0001589,2]
[400614310,1767744641989,-4667.85314935,0.00015926,2]
[400614311,1767744641998,-15000.0,0.00015939,2]
[400614312,1767744642007,-864.0,0.00016002,2]
[400614313,1767744642016,-3000.0,0.00016012,2]
[400614314,1767744642025,-250.0,0.00016119,2]
[400614315,1767744642034,-204.0,0.00016313,2]
[400614316,1767744642043,-7142.75350321,0.00016361,2]
[400614317,1767744642052,-3000.0,0.00016438,2]
[400614318,1767744642061,-3000.0,0.00016438,2]
[400614319,1767744642070,-3000.0,0.00016438,2]
[400614320,1767744642079,-200.0,0.00016473,2]
[400614321,1767744642088,-3500.0,0.0001656,2]
[400614322,1767744642097,-1000.0,0.000167,2]
[400614323,1767744642106,-1000.0,0.000167,2]
[400614324,1767744642115,-1000.0,0.000168,2]
[400614325,1767744642124,-1000.0,0.000168,2]
[400614326,1767744642132,-1000.0,0.000168,2]
[400614327,1767744642141,-1000.0,0.000168,2]
[400614328,1767744642150,-1000.0,0.000168,2]
[400614329,1767744642159,-1000.0,0.000168,2]
[400614330,1767744642168,-1000.0,0.000168,2]
[400614331,1767744642176,-1000.0,0.000168,2]
[400614332,1767744642186,-530.254158,0.000168,2]
[400614333,1767744642195,-3500.0,0.00016986,2]
[400614334,1767744642204,-2692.18736728,0.00016986,2]
[400614335,1767744642213,-3500.0,0.00016986,2]
[400614336,1767744642222,-500.0,0.00017081,2]
[400614337,1767744642231,-500.0,0.00017081,2]
[400614338,1767744642241,-500.0,0.00017081,2]
[400614339,1767744642250,-500.0,0.00017081,2]
[400614340,1767744642260,-500.0,0.00017081,2]
[400614341,1767744642270,-500.0,0.00017081,2]
[400614342,1767744642280,-500.0,0.00017081,2]
[400614343,1767744642289,-500.0,0.00017081,2]
[400614344,1767744642299,-500.0,0.00017081,2]
[400614345,1767744642308,-500.0,0.00017081,2]
[400614346,1767744642318,-500.0,0.00017081,2]
[400614347,1767744642328,-500.0,0.00017081,2]
[400614348,1767744642338,-500.0,0.00017081,2]
[400614349,1767744642348,-500.0,0.00017081,2]
[400614350,1767744642358,-500.0,0.00017081,2]
[400614351,1767744642368,-500.0,0.00017081,2]
[400614352,1767744642377,-511.14869574,0.00017081,2]
[400614353,1767744642388,-823.0,0.00017097,2]
[400614354,1767744642400,-4000.0,0.00017108,2]
[400614355,1767744642409,-1041.66666667,0.00017158,2]
[400614356,1767744642419,-1083.02074853,0.00017252,6]
[400614357,1767744642431,-500.0,0.0001726,2]
[400614358,1767744642440,-8267.0,0.0001726,2]
[400614359,1767744642449,-500.0,0.0001726,2]
[400614360,1767744642459,-500.0,0.00017397,2]
[400614361,1767744642470,-250.0,0.00017397,2]
[400614362,1767744642479,-8267.0,0.00017397,2]
[400614363,1767744642488,-569.00000001,0.00017397,2]
[400614364,1767744642497,-500.0,0.00017534,2]
[400614365,1767744642507,-8267.0,0.00017534,2]
[400614366,1767744642516,-4000.0,0.00017534,2]
[400614367,1767744642527,-1006.10461326,0.00017534,2]
[400614368,1767744642536,-1000.0,0.00017602,2]
[400614369,1767744642545,-4500.0,0.00017656,2]
[400614370,1767744642554,-155.4754909,0.00017671,2]
[400614371,1767744642563,-500.0,0.00017671,2]
[400614372,1767744642573,-8267.0,0.00017671,2]
[400614373,1767744642582,-200.0,0.00017808,2]
[400614374,1767744642591,-500.0,0.00017808,2]
[400614375,1767744642601,-8267.0,0.00017808,2]
[400614376,1767744642611,-500.0,0.00017945,2]
[400614377,1767744642621,-8267.0,0.00017945,2]
[400614378,1767744642630,-500.0,0.00018082,2]
[400614379,1767744642639,-8267.0,0.00018082,2]
[400614380,1767744642648,-4298.06700811,0.00018082,2]
[400614381,1767744642658,-2887.16845353,0.00018204,2]
[400614382,1767744642669,-500.0,0.00018219,2]
[400614383,1767744642679,-8267.0,0.00018219,2]
[400614384,1767744642688,-231.0,0.00018313,2]
[400614385,1767744642697,-558.00072349,0.00018356,2]
[400614386,1767744642707,-8267.0,0.00018356,2]